bitfinex/quotes_BTCUSD_20250922
["timestamp","ask_amount","ask_price","bid_price","bid_amount"]
[1758522130799,0.02209101,112900.0,112890.0,0.66543843]
[1758522131079,0.02309101,112900.0,112890.0,0.67743843]
[1758522131414,0.02309101,112900.0,112890.0,0.67006515]
[1758522131620,0.02209101,112900.0,112890.0,0.67006515]
[1758522131860,0.02309101,112900.0,112890.0,0.71221705]
[1758522132067,1e-08,112900.0,112890.0,0.76221705]
[1758522132294,1e-08,112900.0,112890.0,0.77583378]
[1758522132501,0.10140001,112900.0,112890.0,0.24218568]
[1758522132923,0.00300001,112900.0,112890.0,0.26518568]
[1758522133171,0.003,112900.0,112890.0,0.23018568]
[1758522133618,0.006,112900.0,112890.0,0.25318568]
[1758522133845,0.113,112920.0,112910.0,0.17713222]
[1758522134067,0.113,112920.0,112890.0,0.05724535]
[1758522134068,0.07126631,112900.0,112890.0,0.05724535]
[1758522134294,0.82016904,112900.0,112890.0,0.03047258]
[1758522134521,0.002,112900.0,112890.0,0.09674225]
[1758522134735,0.002,112900.0,112890.0,0.08574225]
[1758522134944,0.002,112900.0,112890.0,0.26505586]
[1758522135153,0.36244,112900.0,112890.0,0.26505586]
[1758522135383,0.002,112900.0,112890.0,0.26505586]
[1758522135596,0.002,112900.0,112890.0,0.08789225]
[1758522135804,0.002,112900.0,112890.0,0.26505586]
[1758522136250,0.005,112900.0,112890.0,0.29405586]
[1758522136466,0.001,112920.0,112910.0,0.17713222]
[1758522136684,0.45588,112940.0,112930.0,0.17710085]
[1758522136930,0.45588,112940.0,112930.0,0.08426967]
[1758522137145,1.19013451,112940.0,112930.0,0.08426967]
[1758522137579,1.36721968,112940.0,112930.0,0.08426967]
[1758522137783,0.45588,112940.0,112930.0,0.08326967]
[1758522137996,1.36936056,112940.0,112930.0,0.09726967]
[1758522138220,1.36936056,112940.0,112930.0,0.014]
[1758522139081,0.66517605,112940.0,112930.0,0.014]
[1758522139307,1.39943056,112940.0,112930.0,0.0130025]
[1758522139521,0.45802088,112940.0,112930.0,0.0130025]
[1758522139739,0.09582088,112940.0,112930.0,0.0887552]
[1758522139955,0.35994088,112940.0,112930.0,0.26800605]
[1758522140161,0.36194088,112940.0,112930.0,0.27952052]
[1758522140369,0.00114088,112940.0,112930.0,0.27052052]
[1758522140822,0.00214088,112940.0,112930.0,0.10241967]
[1758522141025,0.00014088,112940.0,112930.0,0.27052052]
[1758522141245,0.00114088,112940.0,112930.0,0.27052052]
[1758522141446,0.00314088,112940.0,112930.0,0.28952052]
[1758522141653,0.00214088,112940.0,112930.0,0.62352052]
[1758522142105,0.00314088,112940.0,112930.0,0.63156052]
[1758522142313,0.00314088,112940.0,112930.0,0.99104052]
[1758522142530,0.00314088,112940.0,112930.0,1.02119242]
[1758522142759,0.00314088,112940.0,112930.0,1.07119242]
[1758522142968,0.07126631,112970.0,112960.0,0.51705382]
[1758522143183,0.07126631,112970.0,112960.0,0.60447349]
[1758522143821,0.36058631,112990.0,112970.0,0.17703325]
[1758522144025,0.08140719,112990.0,112980.0,0.26229215]
[1758522145091,0.01014088,112990.0,112980.0,0.26229215]
[1758522145295,0.01114088,112990.0,112980.0,0.26229215]
[1758522146485,0.01114088,112990.0,112980.0,0.26444215]
[1758522146691,0.01014088,112990.0,112980.0,0.26444215]
[1758522146911,0.01014088,112990.0,112980.0,0.27029215]
[1758522147126,0.74753539,112990.0,112980.0,0.10126967]
[1758522147348,0.01328088,112990.0,112980.0,0.27829215]
[1758522147579,0.74753539,112990.0,112980.0,0.27829215]
[1758522147794,0.74753539,112990.0,112980.0,0.10126967]
[1758522148014,0.77344539,112990.0,112980.0,0.10130967]
[1758522148246,1.3090522,112990.0,112980.0,0.01604]
[1758522149461,0.01114088,112990.0,112980.0,0.27833215]
[1758522149682,0.01114088,112990.0,112980.0,0.62048215]
[1758522149893,0.01114088,112990.0,112980.0,0.97876215]
[1758522150112,0.01114088,112990.0,112980.0,0.62048215]
[1758522150316,0.01114088,112990.0,112980.0,0.97876215]
[1758522151634,0.01114088,112990.0,112980.0,0.97872215]
[1758522152427,0.74539539,112990.0,112980.0,0.10130967]
[1758522152631,0.9504522,112990.0,112980.0,0.01604]
[1758522152833,1.13132539,112990.0,112980.0,0.01604]
[1758522153251,1.3083322,112990.0,112980.0,0.01604]
[1758522153462,0.39699088,112990.0,112980.0,0.01604]
[1758522153668,0.9504522,112990.0,112980.0,0.01604]
[1758522153894,1.13120539,112990.0,112980.0,0.01604]
[1758522154310,1.3082122,112990.0,112980.0,0.01604]
[1758522154707,1.13120539,112990.0,112980.0,0.01604]
[1758522154913,0.77344539,112990.0,112980.0,0.01604]
[1758522155121,1.13108539,112990.0,112980.0,0.01604]
[1758522155661,1.13096539,112990.0,112980.0,0.19306248]
[1758522156365,2.66745185,112990.0,112980.0,0.01279]
[1758522156611,0.00885269,112960.0,112930.0,4e-05]
[1758522156813,0.53438949,112950.0,112940.0,0.08526967]
[1758522157136,0.56143949,112950.0,112940.0,0.08526967]
[1758522157367,0.20411949,112950.0,112930.0,4e-05]
[1758522157575,0.53836949,112950.0,112930.0,0.08530967]
[1758522157787,0.55719517,112940.0,112930.0,0.08530967]
[1758522157964,1.29654968,112940.0,112930.0,0.08578225]
[1758522158197,0.56229517,112940.0,112930.0,0.08578225]
[1758522158403,1.29654968,112940.0,112930.0,0.00051258]
[1758522158580,0.93938968,112940.0,112930.0,0.00551258]
[1758522159038,1.29642968,112940.0,112930.0,0.00051258]
[1758522159253,1.29642968,112940.0,112930.0,0.00951258]
[1758522159463,0.93938968,112940.0,112930.0,0.00951258]
[1758522159670,1.29634968,112940.0,112930.0,0.00951258]
[1758522160104,0.93938968,112940.0,112930.0,0.00951258]
[1758522160306,2.12352309,112940.0,112930.0,0.00951258]
[1758522162816,1.26796242,112900.0,112890.0,0.00480815]
[1758522163231,1.29601242,112900.0,112890.0,0.00480815]
[1758522163439,0.93945242,112900.0,112890.0,0.00480815]
[1758522163764,0.18224791,112900.0,112890.0,0.00480815]
[1758522163998,0.45216,112910.0,112890.0,0.18693889]
[1758522164216,0.001,112900.0,112890.0,0.27321856]
[1758522164655,0.35736,112900.0,112890.0,0.27322143]
[1758522164867,0.35736,112900.0,112890.0,0.27321143]
[1758522165076,1.26976242,112900.0,112890.0,0.09805782]
[1758522165280,1.26976242,112900.0,112890.0,0.09607782]
[1758522165479,0.91540242,112900.0,112890.0,0.10707782]
[1758522165680,0.73825451,112900.0,112890.0,0.10707782]
[1758522165855,0.36028,112900.0,112890.0,0.28622143]
[1758522166060,0.004,112900.0,112890.0,0.28622143]
[1758522166239,0.36024,112900.0,112890.0,0.28622143]
[1758522166442,0.3572,112900.0,112890.0,0.28990143]
[1758522166668,0.09572,112910.0,112900.0,0.17714791]
[1758522166994,0.09572,112910.0,112900.0,0.08923967]
[1758522166995,0.45188,112910.0,112900.0,0.08923967]
[1758522167138,0.45184,112910.0,112900.0,0.08923967]
[1758522167342,0.45184,112910.0,112900.0,0.08624967]
[1758522167690,0.09572,112910.0,112900.0,0.08024967]
[1758522167891,0.4528,112910.0,112900.0,0.08824967]
[1758522168133,0.62993222,112910.0,112900.0,0.08626967]
[1758522168314,1.36718673,112910.0,112900.0,0.08626967]
[1758522168876,0.63507222,112910.0,112900.0,0.08626967]
[1758522169077,1.36932673,112910.0,112900.0,0.08626967]
[1758522169485,1.19203451,112910.0,112900.0,0.08626967]
[1758522169916,1.36916673,112910.0,112900.0,0.08626967]
[1758522170079,1.18989451,112910.0,112900.0,0.08626967]
[1758522170965,0.83397451,112910.0,112900.0,0.26341758]
[1758522171166,0.45548,112910.0,112900.0,0.26341758]
[1758522171372,0.45548,112910.0,112900.0,0.26838758]
[1758522171373,0.004,112910.0,112900.0,0.26838758]
[1758522171655,0.35972,112910.0,112900.0,0.3472395]
[1758522171834,0.004,112910.0,112900.0,0.3472395]
[1758522172327,0.004,112910.0,112900.0,0.6872395]
[1758522174869,0.003,112910.0,112900.0,0.6792395]
[1758522175064,0.35548,112930.0,112920.0,0.17711654]
[1758522175264,0.07126631,112940.0,112930.0,0.17710085]
[1758522175464,0.07126631,112940.0,112930.0,0.26734052]
[1758522175465,0.42662631,112940.0,112930.0,0.26734052]
[1758522175704,0.42658631,112940.0,112930.0,0.26734052]
[1758522175913,0.42658631,112940.0,112930.0,0.26634052]
[1758522176115,0.42658631,112940.0,112930.0,0.26335052]
[1758522176311,0.42654631,112940.0,112930.0,0.26335052]
[1758522176459,0.42754631,112940.0,112930.0,0.26735052]
[1758522176657,1.34102599,112940.0,112930.0,0.09124967]
[1758522176862,1.36710599,112940.0,112930.0,0.004]
[1758522177270,0.76347451,112940.0,112930.0,0.18110085]
[1758522177468,1.11650451,112940.0,112930.0,0.18510085]
[1758522177931,0.76134451,112940.0,112930.0,0.18510085]
[1758522178294,0.02709,112940.0,112930.0,0.18510085]
[1758522178493,0.38213,112940.0,112930.0,0.18510085]
[1758522179252,0.02709,112940.0,112930.0,0.18510085]
[1758522179456,0.002,112940.0,112930.0,0.27248052]
[1758522179655,1.3105979,112940.0,112930.0,0.008]
[1758522179854,1.12086451,112940.0,112930.0,0.008]
[1758522180062,1.29794968,112940.0,112930.0,0.008]
[1758522180480,0.35878,112940.0,112930.0,0.10199922]
[1758522180684,0.53586517,112940.0,112930.0,0.09537967]
[1758522180920,0.56357517,112940.0,112930.0,0.09326967]
[1758522181127,0.3568,112940.0,112930.0,0.27248052]
[1758522181338,0.02848437,112980.0,112940.0,0.18591483]
[1758522181553,0.00124416,112980.0,112970.0,0.17914815]
[1758522181759,0.20428416,112980.0,112970.0,0.18235815]
[1758522181976,0.00124416,112980.0,112970.0,0.17914815]
[1758522182192,0.35592416,112980.0,112970.0,0.17914815]
[1758522182402,0.35592416,112980.0,112970.0,0.26441782]
[1758522182818,0.35792416,112980.0,112970.0,0.26441782]
[1758522184037,0.35892416,112980.0,112970.0,0.27141782]
[1758522184440,0.35992416,112980.0,112970.0,0.28441782]
[1758522185023,0.00524416,112980.0,112970.0,0.28441782]
[1758522185240,0.35976416,112980.0,112970.0,0.28441782]
[1758522185437,0.35976416,112980.0,112970.0,0.28230782]
[1758522185601,0.38632416,112980.0,112970.0,0.28230782]
[1758522185978,1.12370867,112980.0,112970.0,0.28230782]
[1758522186626,0.38945416,112980.0,112970.0,0.28230782]
[1758522186847,1.29675228,112980.0,112970.0,0.02]
[1758522187577,1.1197298,112980.0,112970.0,0.02]
[1758522187812,1.1197298,112980.0,112970.0,0.19703815]
[1758522188015,0.38929416,112980.0,112970.0,0.19703815]
[1758522188362,0.56631664,112980.0,112970.0,0.02]
[1758522188598,1.29659228,112980.0,112970.0,0.02]
[1758522188825,1.29655228,112980.0,112970.0,0.02]
[1758522189034,0.56627664,112980.0,112970.0,0.02]
[1758522189226,1.29655228,112980.0,112970.0,0.02]
[1758522189875,1.72182195,112980.0,112970.0,0.02]
[1758522190275,1.80709162,112980.0,112970.0,0.02]
[1758522190877,1.80609162,112980.0,112970.0,0.013]
[1758522191089,0.1770827,112950.0,112930.0,0.52595494]
[1758522191286,0.53128517,112940.0,112930.0,0.42526967]
[1758522191531,0.53128517,112940.0,112930.0,0.42737967]
[1758522191688,0.53128517,112940.0,112930.0,0.08526967]
[1758522192668,0.3542,112940.0,112930.0,0.08740967]
[1758522192790,0.35416,112940.0,112930.0,0.27934039]
[1758522193003,0.35516,112940.0,112930.0,0.29034039]
[1758522193206,0.35512,112940.0,112930.0,0.29034039]
[1758522193661,0.001,112940.0,112930.0,0.29038039]
[1758522193861,0.001,112940.0,112930.0,0.29738039]
[1758522193862,0.002,112940.0,112930.0,0.29738039]
[1758522194067,0.35608,112940.0,112930.0,0.36296205]
[1758522195400,0.002,112940.0,112930.0,0.36296205]
[1758522195604,0.356,112940.0,112930.0,0.36296205]
[1758522195837,0.002,112940.0,112930.0,0.36296205]
[1758522197580,0.002,112940.0,112930.0,0.97266205]
[1758522198801,0.10649437,112980.0,112930.0,0.97266205]
[1758522199004,0.36508416,112980.0,112970.0,0.17703815]
[1758522199215,0.01124416,112980.0,112970.0,0.27927782]
[1758522199421,0.01124416,112980.0,112970.0,0.61927782]
[1758522200238,0.01124416,112980.0,112970.0,0.60444782]
[1758522200857,0.01924416,112980.0,112970.0,0.61044782]
[1758522201061,0.01924416,112980.0,112970.0,0.62469704]
[1758522201206,0.01224416,112980.0,112970.0,0.62469704]
[1758522201458,0.01224416,112980.0,112970.0,0.63269704]
[1758522201653,0.01,112990.0,112980.0,0.54717438]
[1758522201938,0.01,113030.0,113020.0,0.17695983]
[1758522202064,0.35436714,113030.0,113020.0,0.2643695]
[1758522202656,0.01014083,113030.0,113020.0,0.6043695]
[1758522203230,0.36382083,113030.0,113020.0,0.6075095]
[1758522203431,0.01014083,113030.0,113020.0,0.6191995]
[1758522203773,0.01014083,113030.0,113020.0,0.6251995]
[1758522204203,0.01014083,113030.0,113020.0,0.6191995]
[1758522204675,0.01114083,113030.0,113020.0,0.6291995]
[1758522204820,0.01114083,113030.0,113020.0,0.6261995]
[1758522205031,0.01114083,113030.0,113020.0,0.6321995]
[1758522205471,0.01114083,113030.0,113020.0,0.69723733]
[1758522206004,0.01114083,113030.0,113020.0,0.68554733]
[1758522206415,0.01114083,113030.0,113020.0,0.69723733]
[1758522208476,0.01114083,113030.0,113020.0,0.77738923]
[1758522209127,0.45614891,113060.0,113050.0,0.17691287]
[1758522209349,0.45614891,113060.0,113050.0,0.26415254]
[1758522209502,0.45614891,113060.0,113050.0,0.32973764]
[1758522209723,0.36042891,113060.0,113050.0,0.32973764]
[1758522210287,0.00710891,113060.0,113050.0,0.67397764]
[1758522210663,0.00710891,113060.0,113050.0,0.68570764]
[1758522210846,0.01110891,113060.0,113050.0,0.68570764]
[1758522212707,0.01110891,113060.0,113050.0,0.67401764]
[1758522213147,0.01110891,113060.0,113050.0,0.68570764]
[1758522213574,0.01110891,113060.0,113050.0,0.76585954]
[1758522214212,0.01110891,113060.0,113050.0,1.02613764]
[1758522214420,0.00710891,113060.0,113050.0,1.02289764]
[1758522214861,0.00710891,113060.0,113050.0,0.67677764]
[1758522215224,0.00710891,113060.0,113050.0,0.69170764]
[1758522215436,0.00710891,113060.0,113050.0,0.77185954]
[1758522215685,0.00710891,113060.0,113050.0,0.77785954]
[1758522215958,0.01,113080.0,113070.0,0.17688157]
[1758522216185,0.01014083,113080.0,113070.0,0.60215124]
[1758522216417,0.01014083,113080.0,113070.0,0.60412124]
[1758522216656,0.01014083,113080.0,113070.0,0.97461124]
[1758522217121,0.01014083,113080.0,113070.0,0.97449124]
[1758522217333,0.01014083,113080.0,113070.0,0.96580124]
[1758522217545,0.01114083,113080.0,113070.0,0.96580124]
[1758522217957,0.01114083,113080.0,113070.0,0.96256124]
[1758522218504,0.01114083,113080.0,113070.0,0.96584124]
[1758522219025,0.01114083,113080.0,113070.0,0.61040124]
[1758522219394,0.01114083,113080.0,113070.0,0.96504124]
[1758522219773,0.01114083,113080.0,113070.0,0.97673124]
[1758522220393,0.01114083,113080.0,113070.0,0.62209124]
[1758522221453,0.01114083,113080.0,113070.0,0.96608124]
[1758522222002,0.01114083,113080.0,113070.0,0.61040124]
[1758522222626,0.01114083,113080.0,113070.0,0.62209124]
[1758522224957,0.01114083,113080.0,113070.0,0.97677124]
[1758522226872,0.01114083,113080.0,113070.0,0.62209124]
[1758522227239,0.01114083,113080.0,113070.0,0.61040124]
[1758522227438,0.01114083,113080.0,113070.0,0.96416124]
[1758522227749,0.01114083,113080.0,113070.0,0.61040124]
[1758522227969,0.01114083,113080.0,113070.0,0.96424124]
[1758522228628,0.01114083,113080.0,113070.0,0.60716124]
[1758522228919,0.01315083,113080.0,113070.0,0.96024124]
[1758522229049,0.01114083,113080.0,113070.0,0.96024124]
[1758522231159,0.01114083,113080.0,113070.0,0.60716124]
[1758522231358,0.01114083,113080.0,113070.0,0.96012124]
[1758522231684,0.74639647,113080.0,113070.0,0.08830967]
[1758522231887,0.0236,113080.0,113070.0,0.08830967]
[1758522232102,0.02561,113080.0,113070.0,0.26519124]
[1758522232305,0.02561,113080.0,113070.0,0.26716124]
[1758522232983,0.3546,113090.0,113080.0,0.17686593]
[1758522233208,0.02561,113090.0,113080.0,0.2621356]
[1758522233352,0.38021,113090.0,113080.0,0.2621356]
[1758522233561,0.9163556,113100.0,113090.0,0.17685029]
[1758522233562,0.0004,113100.0,113090.0,0.17685029]
[1758522233747,0.02601,113100.0,113090.0,0.26211996]
[1758522234524,0.02601,113100.0,113090.0,0.25911996]
[1758522234802,0.02601,113100.0,113090.0,0.32579061]
[1758522235165,0.03301,113100.0,113090.0,0.32776061]
[1758522235946,0.031,113100.0,113090.0,0.32776061]
[1758522236162,0.0074,113100.0,113090.0,0.33100061]
[1758522236806,0.0074,113100.0,113090.0,0.32776061]
[1758522237054,0.03215,113100.0,113090.0,0.32776061]
[1758522237262,0.03215,113100.0,113090.0,0.32789061]
[1758522237461,0.02515,113100.0,113090.0,0.32789061]
[1758522237799,0.02515,113100.0,113090.0,0.32579061]
[1758522238013,0.02819,113100.0,113090.0,0.32579061]
[1758522238219,0.02715,113100.0,113090.0,0.32679061]
[1758522238573,0.75846564,113100.0,113090.0,0.32979061]
[1758522238900,0.75846564,113100.0,113090.0,0.33179061]
[1758522239112,0.75846564,113100.0,113090.0,0.33479061]
[1758522239853,0.02819,113100.0,113090.0,0.33479061]
[1758522240065,0.0004,113100.0,113090.0,0.33689061]
[1758522240276,0.0004,113100.0,113090.0,0.33999061]
[1758522240491,0.0004,113100.0,113090.0,0.69168061]
[1758522241128,0.0004,113100.0,113090.0,0.74539192]
[1758522241345,0.0004,113100.0,113090.0,0.79539192]
[1758522241553,0.0004,113100.0,113090.0,1.12475251]
[1758522241968,0.00703676,113110.0,113100.0,0.17683465]
[1758522242188,0.0956,113150.0,113140.0,0.17677214]
[1758522242403,0.46031094,113160.0,113150.0,0.51675651]
[1758522242601,0.74583415,113160.0,113150.0,0.60722618]
[1758522243088,1.50389979,113160.0,113150.0,0.08526967]
[1758522243290,1.50389979,113160.0,113150.0,0.26202618]
[1758522243886,1.68064068,113160.0,113150.0,0.08526967]
[1758522244041,1.68364068,113160.0,113150.0,0.08526967]
[1758522244252,0.17776821,113150.0,113130.0,0.17677998]
[1758522244459,0.17776821,113150.0,113140.0,0.08526967]
[1758522244663,0.17677514,113140.0,113120.0,0.17680323]
[1758522244879,0.35725,113130.0,113120.0,0.60207283]
[1758522245061,0.38299,113130.0,113120.0,0.60207283]
[1758522245476,0.37995,113130.0,113120.0,0.26207283]
[1758522245894,0.93277252,113150.0,113130.0,0.17678776]
[1758522246100,0.0227,113150.0,113140.0,0.26204181]
[1758522246277,0.38567,113150.0,113140.0,0.26204181]
[1758522246459,0.93482215,113150.0,113140.0,0.08526967]
[1758522246663,1.29254215,113150.0,113140.0,0.26204181]
[1758522247177,0.75806564,113150.0,113140.0,0.26204181]
[1758522247400,1.11578564,113150.0,113140.0,0.26204181]
[1758522247574,1.11522564,113150.0,113140.0,0.26204181]
[1758522247795,0.02475,113150.0,113140.0,0.26204181]
[1758522248036,0.38191,113150.0,113140.0,0.26204181]
[1758522248254,0.41221415,113160.0,113150.0,0.17675651]
[1758522248448,0.76969415,113160.0,113150.0,0.17675651]
[1758522248652,1.33817796,113160.0,113150.0,0.17675651]
[1758522248875,1.33970796,113160.0,113150.0,0.17675651]
[1758522249169,0.76917415,113160.0,113150.0,0.26202618]
[1758522249378,1.33765796,113160.0,113150.0,0.26412618]
[1758522249859,0.98274796,113160.0,113150.0,0.26202618]
[1758522250062,0.98274796,113160.0,113150.0,0.26722618]
[1758522250063,0.74583415,113160.0,113150.0,0.26722618]
[1758522250214,0.74583415,113160.0,113150.0,0.26822618]
[1758522250578,0.74879415,113160.0,113150.0,0.26822618]
[1758522251621,0.74803415,113160.0,113150.0,0.26822618]
[1758522252540,0.74803415,113160.0,113150.0,0.26512618]
[1758522252971,0.77289415,113160.0,113150.0,0.26302618]
[1758522253290,1.34137796,113160.0,113150.0,0.26302618]
[1758522253489,0.77289415,113160.0,113150.0,0.26302618]
[1758522253648,1.34137796,113160.0,113150.0,0.26302618]
[1758522254754,0.77289415,113160.0,113150.0,0.26302618]
[1758522255167,1.34137796,113160.0,113150.0,0.08626967]
[1758522255377,1.52114885,113160.0,113150.0,0.08626967]
[1758522255554,1.52114885,113160.0,113150.0,0.001]
[1758522255555,0.95266504,113160.0,113150.0,0.001]
[1758522255765,2.08963266,113160.0,113150.0,0.001]
[1758522256263,0.95266504,113160.0,113150.0,0.001]
[1758522256491,1.52114885,113160.0,113150.0,0.001]
[1758522257600,0.95266504,113160.0,113150.0,0.001]
[1758522257820,1.52114885,113160.0,113150.0,0.001]
[1758522258072,0.95302504,113160.0,113150.0,0.001]
[1758522258488,1.51851885,113160.0,113150.0,0.001]
[1758522258872,1.52154885,113160.0,113150.0,0.001]
[1758522259077,2.09003266,113160.0,113150.0,0.001]
[1758522259499,2.51530233,113160.0,113150.0,0.001]
[1758522259695,2.51530233,113160.0,113150.0,0.00012717]
[1758522260441,0.17679621,113130.0,113110.0,0.24808314]
[1758522260659,0.39266822,113120.0,113110.0,0.24808314]
[1758522260862,0.94850381,113120.0,113110.0,0.24808314]
[1758522261278,0.59637381,113120.0,113110.0,0.17681683]
[1758522261472,0.94786381,113120.0,113110.0,0.17681683]
[1758522261765,0.59334381,113120.0,113110.0,0.17781683]
[1758522262031,0.94833304,113120.0,113110.0,0.17781683]
[1758522262266,0.94599035,113120.0,113100.0,0.513611]
[1758522262507,0.53374439,113120.0,113110.0,0.17881902]
[1758522262731,0.53374439,113120.0,113110.0,0.002]
[1758522263185,0.53129439,113120.0,113110.0,0.17881902]
[1758522263839,0.35460923,113120.0,113110.0,0.17881902]
[1758522264057,0.92309304,113120.0,113110.0,0.17881902]
[1758522264308,1.12275643,113120.0,113110.0,0.17681902]
[1758522264568,1.12275643,113120.0,113100.0,0.60088067]
[1758522264802,0.56848381,113110.0,113100.0,0.33118067]
[1758522264994,0.92272381,113110.0,113100.0,0.32918067]
[1758522265245,0.92272381,113110.0,113100.0,0.33124067]
[1758522265927,1.12240283,113110.0,113100.0,0.32918067]
[1758522266372,0.37908,113110.0,113100.0,0.33318067]
[1758522266689,0.35352,113110.0,113100.0,0.33524067]
[1758522266891,0.92200381,113110.0,113100.0,0.34524067]
[1758522267089,0.92200381,113110.0,113100.0,0.34833067]
[1758522267292,0.35352,113110.0,113100.0,0.34833067]
[1758522267602,0.92200381,113110.0,113100.0,0.34524067]
[1758522267802,0.56848381,113110.0,113100.0,0.34524067]
[1758522268002,0.02332923,113120.0,113110.0,0.17681902]
[1758522268215,0.93464126,113120.0,113110.0,0.17990902]
[1758522268437,0.92199304,113120.0,113110.0,0.17889902]
[1758522268634,0.56895304,113120.0,113110.0,0.18198902]
[1758522268879,1.09879643,113120.0,113110.0,0.17889902]
[1758522269077,1.12561643,113120.0,113110.0,0.17881902]
[1758522270238,1.12561643,113120.0,113110.0,0.18581902]
[1758522271134,1.12561643,113120.0,113110.0,0.009]
[1758522271281,0.20409262,113120.0,113110.0,0.18581902]
[1758522271481,0.77257643,113120.0,113110.0,0.18581902]
[1758522271911,1.15561643,113120.0,113110.0,0.18581902]
[1758522272829,1.15710643,113120.0,113110.0,0.009]
[1758522274095,0.58862262,113120.0,113110.0,0.009]
[1758522274227,1.15710643,113120.0,113110.0,0.009]
[1758522275052,0.58722262,113120.0,113110.0,0.009]
[1758522275254,1.15570643,113120.0,113110.0,0.009]
[1758522275448,1.15570643,113120.0,113110.0,0.18581902]
[1758522275449,0.80266643,113120.0,113110.0,0.18581902]
[1758522275734,1.15570643,113120.0,113110.0,0.009]
[1758522275857,0.23418262,113120.0,113110.0,0.18789902]
[1758522276060,0.62379304,113120.0,113110.0,0.18789902]
[1758522276268,0.05530923,113120.0,113110.0,0.18789902]
[1758522276466,0.61160126,113120.0,113110.0,0.19098902]
[1758522276672,0.95195304,113120.0,113110.0,0.19098902]
[1758522277876,0.59895304,113120.0,113110.0,0.28828869]
[1758522278016,0.95195304,113120.0,113110.0,0.27625869]
[1758522279034,0.38346923,113120.0,113110.0,0.27625869]
[1758522279459,0.95195304,113120.0,113110.0,0.27629869]
[1758522279663,0.38346923,113120.0,113110.0,0.27629869]
[1758522279861,0.95195304,113120.0,113110.0,0.27629869]
[1758522280486,1.13073643,113120.0,113110.0,0.27320869]
[1758522280687,1.15706643,113120.0,113110.0,0.00904]
[1758522280955,1.15557643,113120.0,113110.0,0.00904]
[1758522281928,1.15706643,113120.0,113110.0,0.00904]
[1758522282324,1.15557643,113120.0,113110.0,0.00904]
[1758522282680,0.40830923,113120.0,113110.0,0.19102902]
[1758522282897,0.59895304,113120.0,113110.0,0.19102902]
[1758522283112,0.38338923,113120.0,113110.0,0.19102902]
[1758522283321,0.95187304,113120.0,113110.0,0.28832869]
[1758522283714,0.03046923,113120.0,113110.0,0.28832869]
[1758522283950,0.38338923,113120.0,113110.0,0.28832869]
[1758522284278,0.03046923,113120.0,113110.0,0.28832869]
[1758522284481,0.38338923,113120.0,113110.0,0.28832869]
[1758522285366,0.95187304,113120.0,113110.0,0.27629869]
[1758522285950,0.38338923,113120.0,113110.0,0.27629869]
[1758522286135,0.9512987,113120.0,113110.0,0.27629869]
[1758522286337,0.9512987,113120.0,113110.0,0.28832869]
[1758522286740,0.9512987,113120.0,113110.0,0.27629869]
[1758522287844,0.9781187,113120.0,113110.0,0.27629869]
[1758522288210,0.40765489,113120.0,113110.0,0.27629869]
[1758522288346,0.9512987,113120.0,113110.0,0.27629869]
[1758522289027,0.38281489,113120.0,113110.0,0.27629869]
[1758522289179,0.9512987,113120.0,113110.0,0.27629869]
[1758522289519,0.38281489,113120.0,113110.0,0.27629869]
[1758522289755,0.9512987,113120.0,113110.0,0.27629869]
[1758522290555,0.5983787,113120.0,113110.0,0.27629869]
[1758522290697,0.9512187,113120.0,113110.0,0.27629869]
[1758522290904,0.38273489,113120.0,113110.0,0.27629869]
[1758522291100,1.13009209,113120.0,113110.0,0.27112869]
[1758522291306,1.15493209,113120.0,113110.0,0.09430967]
[1758522291505,0.02989489,113120.0,113110.0,0.27629869]
[1758522291730,0.9511787,113120.0,113110.0,0.27629869]
[1758522292070,0.9760187,113120.0,113110.0,0.27629869]
[1758522292700,0.9511787,113120.0,113110.0,0.27629869]
[1758522293061,0.38269489,113120.0,113110.0,0.28832869]
[1758522293261,0.38269489,113120.0,113110.0,0.27629869]
[1758522293477,0.02989489,113120.0,113110.0,0.27629869]
[1758522293879,0.38269489,113120.0,113110.0,0.27629869]
[1758522294080,0.9511787,113120.0,113110.0,0.27629869]
[1758522294931,0.02989489,113120.0,113110.0,0.27629869]
[1758522295093,0.9511387,113120.0,113110.0,0.28832869]
[1758522295480,0.5983787,113120.0,113110.0,0.27629869]
[1758522295704,0.9511387,113120.0,113110.0,0.27629869]
[1758522296311,0.9759787,113120.0,113110.0,0.27320869]
[1758522296492,0.9511387,113120.0,113110.0,0.27629869]
[1758522297017,0.9738887,113120.0,113110.0,0.27629869]
[1758522297783,0.6211287,113120.0,113110.0,0.27629869]
[1758522297980,0.9738487,113120.0,113110.0,0.27629869]
[1758522298226,0.9510987,113120.0,113110.0,0.27629869]
[1758522298428,0.5983787,113120.0,113110.0,0.27629869]
[1758522298641,0.9510587,113120.0,113110.0,0.27629869]
[1758522299980,0.38257489,113120.0,113110.0,0.27629869]
[1758522300205,0.38257489,113120.0,113110.0,0.54599869]
[1758522300411,0.9510587,113120.0,113110.0,0.54599869]
[1758522300772,0.38257489,113120.0,113110.0,0.54599869]
[1758522301172,0.02989489,113120.0,113110.0,0.54599869]
[1758522301637,0.02989489,113120.0,113110.0,0.28832869]
[1758522301769,0.38249489,113120.0,113110.0,0.28832869]
[1758522301970,0.02989489,113120.0,113110.0,0.28832869]
[1758522302171,0.02989489,113120.0,113110.0,0.27629869]
[1758522302406,0.6230987,113120.0,113110.0,0.27320869]
[1758522302778,0.6003487,113120.0,113110.0,0.27320869]
[1758522303049,0.6230987,113120.0,113110.0,0.27112869]
[1758522303268,0.79990209,113120.0,113110.0,0.27112869]
[1758522303666,0.80139209,113120.0,113110.0,0.00904]
[1758522304533,1.79514557,113120.0,113110.0,0.00904]
[1758522305524,1.79514557,113120.0,113110.0,0.00204]
[1758522305724,1.84514557,113120.0,113110.0,0.00204]
[1758522305926,1.84514557,113120.0,113110.0,4e-05]
[1758522306339,1.79514557,113120.0,113110.0,0.00104]
[1758522306556,1.84514557,113120.0,113110.0,0.00404]
[1758522306710,1.93041524,113120.0,113110.0,4e-05]
[1758522307069,1.99041524,113120.0,113110.0,4e-05]
[1758522307816,2.34289524,113120.0,113110.0,4e-05]
[1758522308018,2.29285524,113120.0,113110.0,4e-05]
[1758522308236,2.34285524,113120.0,113110.0,4e-05]
[1758522308448,1.75378664,113110.0,113100.0,4e-05]
[1758522308695,2.12149631,113110.0,113100.0,4e-05]
[1758522308913,2.50014631,113110.0,113100.0,4e-05]
[1758522309131,2.55014631,113110.0,113100.0,4e-05]
[1758522309347,1.51971744,113110.0,113100.0,4e-05]
[1758522309550,2.63983119,113110.0,113100.0,4e-05]
[1758522309755,2.55614631,113110.0,113100.0,4e-05]
[1758522309967,2.15370631,113110.0,113100.0,4e-05]
[1758522310177,2.55014631,113110.0,113100.0,4e-05]